fUSD/lending_fUSD_20260520
["ID","MTS","AMOUNT","RATE_DAILY","PERIOD"]
[422691229,1779250358000,-500.0,6.067e-05,2]
[422691230,1779250358000,-500.0,6.067e-05,2]
[422691231,1779250358000,-500.0,6.067e-05,2]
[422691234,1779250358000,-500.0,6.067e-05,2]
[422691233,1779250358000,-500.0,6.067e-05,2]
[422691235,1779250358000,-500.0,6.067e-05,2]
[422691236,1779250358000,-500.0,6.067e-05,2]
[422691232,1779250358000,-500.0,6.067e-05,2]
[422691238,1779250420000,-500.0,6.067e-05,2]
[422691239,1779250420000,-500.0,6.067e-05,2]
[422691237,1779250420000,-500.0,6.067e-05,2]
[422691241,1779250420000,-500.0,6.067e-05,2]
[422691240,1779250420000,-500.0,6.067e-05,2]
[422691242,1779250420000,-500.0,6.067e-05,2]
[422691255,1779250588000,-371.0,6.067e-05,2]
[422691254,1779250588000,-300.0,6.067e-05,2]
[422691402,1779251432000,-500.0,5.767e-05,2]
[422691403,1779251432000,-500.0,5.767e-05,2]
[422691404,1779251432000,-500.0,5.767e-05,2]
[422691408,1779251432000,-150.0,6.062e-05,2]
[422691407,1779251432000,-177.53,6.003e-05,2]
[422691406,1779251432000,-332.99,5.776e-05,2]
[422691409,1779251432000,-500.0,6.07e-05,2]
[422691412,1779251432000,-150.0,6.182e-05,2]
[422691410,1779251432000,-150.0,6.122e-05,2]
[422691411,1779251432000,-283.93,6.158e-05,2]
[422691413,1779251432000,-157.0,6.242e-05,2]
[422691426,1779251432000,-195.39157573,6.448e-05,2]
[422691424,1779251432000,-1001.59004875,6.447e-05,2]
[422691401,1779251432000,-500.0,5.767e-05,2]
[422691405,1779251432000,-418499.93,5.768e-05,2]
[422691400,1779251432000,-500.0,5.767e-05,2]
[422691389,1779251432000,-190.0,5.767e-05,2]
[422691390,1779251432000,-592.80272966,5.767e-05,2]
[422691414,1779251432000,-316.59,6.245e-05,2]
[422691385,1779251432000,-250.0,3.368e-05,2]
[422691384,1779251432000,-177.53,3.061e-05,2]
[422691387,1779251432000,-300.0,5.767e-05,2]
[422691386,1779251432000,-250.0,4.414e-05,2]
[422691388,1779251432000,-300.0,5.767e-05,2]
[422691396,1779251432000,-500.0,5.767e-05,2]
[422691394,1779251432000,-500.0,5.767e-05,2]
[422691392,1779251432000,-150.0,5.767e-05,2]
[422691393,1779251432000,-344.18986782,5.767e-05,2]
[422691395,1779251432000,-500.0,5.767e-05,2]
[422691399,1779251432000,-500.0,5.767e-05,2]
[422691397,1779251432000,-500.0,5.767e-05,2]
[422691398,1779251432000,-500.0,5.767e-05,2]
[422691391,1779251432000,-607.19727034,5.767e-05,2]
[422691420,1779251432000,-255.0,6.344e-05,2]
[422691437,1779251432000,-4999.99,6.448e-05,2]
[422691416,1779251432000,-420.0,6.344e-05,2]
[422691466,1779251432000,-299.99,6.477e-05,2]
[422691464,1779251432000,-1579.15,6.477e-05,2]
[422691462,1779251432000,-151.0,6.477e-05,2]
[422691458,1779251432000,-14797.12,6.448e-05,2]
[422691471,1779251432000,-587.0,6.978e-05,2]
[422691470,1779251432000,-468.72,6.821e-05,2]
[422691472,1779251432000,-2351.0,6.978e-05,2]
[422691473,1779251432000,-433.0,6.978e-05,2]
[422691474,1779251432000,-316.59,7.026e-05,2]
[422691477,1779251432000,-166.66,7.319e-05,2]
[422691478,1779251432000,-182.12,7.386e-05,2]
[422691479,1779251432000,-166.66,7.553e-05,2]
[422691476,1779251432000,-200.0,7.262e-05,2]
[422691480,1779251432000,-160.0,7.634e-05,2]
[422691415,1779251432000,-500.0,6.338e-05,2]
[422691460,1779251432000,-154.11064451,6.448e-05,2]
[422691469,1779251432000,-182.12,6.715e-05,2]
[422691475,1779251432000,-166.66,7.085e-05,2]
[422691454,1779251432000,-24999.99,6.448e-05,2]
[422691418,1779251432000,-1680.0,6.344e-05,2]
[422691468,1779251432000,-9239.23,6.668e-05,2]
[422691422,1779251432000,-4680.71,6.369e-05,2]
[422691428,1779251432000,-195.39157572,6.448e-05,2]
[422691433,1779251432000,-433.76,6.448e-05,2]
[422691442,1779251432000,-4114.03,6.448e-05,2]
[422691441,1779251432000,-9999.99,6.448e-05,2]
[422691431,1779251432000,-2772.18,6.448e-05,2]
[422691439,1779251432000,-9174.61,6.448e-05,2]
[422691435,1779251432000,-999.99,6.448e-05,2]
[422691445,1779251432000,-9999.99,6.448e-05,2]
[422691456,1779251432000,-9999.99,6.448e-05,2]
[422691447,1779251432000,-3222.85,6.448e-05,2]
[422691449,1779251432000,-9999.99,6.448e-05,2]
[422691451,1779251432000,-150.99,6.448e-05,2]
[422691513,1779251433000,-387.82957256,9.5e-05,2]
[422691515,1779251433000,-502.0,9.534e-05,2]
[422691514,1779251433000,-200.0,9.5e-05,2]
[422691519,1779251433000,-167.68604412,0.0001,2]
[422691509,1779251433000,-622.26340935,9.288e-05,2]
[422691502,1779251433000,-163.390817,8.693e-05,2]
[422691520,1779251433000,-97661.0,0.0001,2]
[422691517,1779251433000,-170.64,9.863e-05,2]
[422691510,1779251433000,-990.73659065,9.288e-05,2]
[422691511,1779251433000,-188.0,9.291e-05,2]
[422691518,1779251433000,-722.74807562,0.0001,2]
[422691524,1779251433000,-1090.61706,0.0001,2]
[422691516,1779251433000,-1000.0,9.597e-05,2]
[422691522,1779251433000,-152.833603,0.0001,2]
[422691523,1779251433000,-151.0,0.0001,2]
[422691521,1779251433000,-163.44,0.0001,2]
[422691533,1779251433000,-2000.0,0.00010274,2]
[422691532,1779251433000,-158.95,0.00010274,2]
[422691526,1779251433000,-1090.61707,0.0001,2]
[422691529,1779251433000,-1090.61706,0.0001,2]
[422691506,1779251433000,-1010.27150272,8.696e-05,2]
[422691525,1779251433000,-1090.61706,0.0001,2]
[422691512,1779251433000,-316.59,9.368e-05,2]
[422691505,1779251433000,-1000.0,8.696e-05,2]
[422691491,1779251433000,-151.0,8.216e-05,2]
[422691503,1779251433000,-151.0,8.695e-05,2]
[422691527,1779251433000,-1090.61706,0.0001,2]
[422691483,1779251433000,-398.0,7.676e-05,2]
[422691482,1779251433000,-823.0,7.676e-05,2]
[422691481,1779251433000,-215.20247212,7.634e-05,2]
[422691485,1779251433000,-334.9895,7.753e-05,2]
[422691484,1779251433000,-736.0,7.676e-05,2]
[422691495,1779251433000,-170.64,8.219e-05,2]
[422691490,1779251433000,-993.68721,8.178e-05,2]
[422691493,1779251433000,-158.95,8.219e-05,2]
[422691486,1779251433000,-166.66,7.786e-05,2]
[422691496,1779251433000,-4137.56,8.219e-05,2]
[422691487,1779251433000,-316.59,7.806e-05,2]
[422691492,1779251433000,-500.0,8.219e-05,2]
[422691489,1779251433000,-182.12,8.058e-05,2]
[422691488,1779251433000,-166.66,8.02e-05,2]
[422691494,1779251433000,-193.18,8.219e-05,2]
[422691497,1779251433000,-2000.0,8.219e-05,2]
[422691499,1779251433000,-1252.0,8.443e-05,2]
[422691500,1779251433000,-1152.0,8.444e-05,2]
[422691501,1779251433000,-316.59,8.587e-05,2]
[422691498,1779251433000,-166.66,8.254e-05,2]
[422691504,1779251433000,-1000.0,8.696e-05,2]
[422691508,1779251433000,-2000.0,9.247e-05,2]
[422691507,1779251433000,-170.64,9.041e-05,2]
[422691528,1779251433000,-1090.61706,0.0001,2]
[422691564,1779251433000,-200.0,0.00010605,2]
[422691531,1779251433000,-2258.0,0.00010217,2]
[422691563,1779251433000,-200.0,0.00010605,2]
[422691566,1779251433000,-1000.0,0.00010616,2]
[422691565,1779251433000,-200.0,0.00010605,2]
[422691567,1779251433000,-1000.0,0.00010646,2]
[422691583,1779251433000,-727.50726374,0.000107,2]
[422691561,1779251433000,-553.52226381,0.000106,2]
[422691569,1779251433000,-170.64,0.00010685,2]
[422691571,1779251433000,-151.0,0.00010697,2]
[422691570,1779251433000,-627.09078716,0.0001069,2]
[422691576,1779251433000,-764.04635496,0.000107,2]
[422691573,1779251433000,-141.57770941,0.000107,5]
[422691574,1779251433000,-85307.33751267,0.000107,2]
[422691575,1779251433000,-1254.41808677,0.000107,2]
[422691568,1779251433000,-179.37544341,0.00010647,2]
[422691572,1779251433000,-412.42229059,0.000107,5]
[422691578,1779251433000,-735.95364504,0.000107,2]
[422691577,1779251433000,-444.0,0.000107,2]
[422691579,1779251433000,-500.0,5.767e-05,2]
[422691580,1779251433000,-220.22605909,5.767e-05,2]
[422691582,1779251433000,-500.0,5.767e-05,2]
[422691581,1779251433000,-279.77394091,5.767e-05,2]
[422691584,1779251433000,-643.82857995,0.000107,2]
[422691530,1779251433000,-4000.0,0.00010027,2]
[422691559,1779251433000,-151.069,0.00010562,2]
[422691560,1779251433000,-1000.0,0.0001057,2]
[422691562,1779251433000,-200.0,0.00010605,2]
[422691557,1779251433000,-151.0,0.00010538,2]
[422691546,1779251433000,-151.0,0.00010535,2]
[422691535,1779251433000,-1084.20872683,0.00010278,2]
[422691547,1779251433000,-450.0,0.00010537,2]
[422691549,1779251433000,-500.0,0.00010537,2]
[422691536,1779251433000,-1000.0,0.00010437,2]
[422691534,1779251433000,-2915.79127317,0.00010278,2]
[422691537,1779251433000,-3863.36591944,0.00010438,2]
[422691539,1779251433000,-1000.0,0.00010443,2]
[422691541,1779251433000,-200.0,0.000105,2]
[422691544,1779251433000,-200.0,0.000105,2]
[422691538,1779251433000,-5000.0,0.00010438,2]
[422691542,1779251433000,-200.0,0.000105,2]
[422691545,1779251433000,-4000.0,0.00010529,2]
[422691543,1779251433000,-200.0,0.000105,2]
[422691540,1779251433000,-185.93753424,0.000105,2]
[422691554,1779251433000,-500.0,0.00010537,2]
[422691555,1779251433000,-482.81556771,0.00010537,2]
[422691556,1779251433000,-104180.59,0.00010538,2]
[422691553,1779251433000,-500.0,0.00010537,2]
[422691551,1779251433000,-500.0,0.00010537,2]
[422691548,1779251433000,-198.06666176,0.00010537,2]
[422691550,1779251433000,-285.99528398,0.00010537,2]
[422691552,1779251433000,-533.68840379,0.00010537,2]
[422691558,1779251433000,-1040.64761237,0.00010555,2]
[422691587,1779251434000,-17191.60070677,0.000107,2]
[422691588,1779251434000,-356.44950306,0.000107,2]
[422691585,1779251434000,-500.0,5.767e-05,2]
[422691586,1779251434000,-500.0,5.767e-05,2]
[422691597,1779251438000,-500.0,5.767e-05,2]
[422691593,1779251438000,-500.0,5.767e-05,2]
[422691599,1779251438000,-500.0,5.767e-05,2]
[422691596,1779251438000,-500.0,5.767e-05,2]
[422691595,1779251438000,-500.0,5.767e-05,2]
[422691589,1779251438000,-500.0,5.767e-05,2]
[422691600,1779251438000,-500.0,5.767e-05,2]
[422691594,1779251438000,-500.0,5.767e-05,2]
[422691591,1779251438000,-500.0,5.767e-05,2]
[422691592,1779251438000,-500.0,5.767e-05,2]
[422691590,1779251438000,-500.0,5.767e-05,2]
[422691598,1779251438000,-500.0,5.767e-05,2]
[422691601,1779251438000,-500.0,5.767e-05,2]
[422691602,1779251438000,-500.0,5.767e-05,2]
[422691607,1779251438000,-500.0,5.767e-05,2]
[422691605,1779251438000,-500.0,5.767e-05,2]
[422691614,1779251438000,-8274.65703,0.000107,2]
[422691603,1779251438000,-500.0,5.767e-05,2]
[422691608,1779251438000,-500.0,5.767e-05,2]
[422691609,1779251438000,-500.0,5.767e-05,2]
[422691606,1779251438000,-500.0,5.767e-05,2]
[422691610,1779251438000,-500.0,5.767e-05,2]
[422691612,1779251438000,-151.0,0.0001,2]
[422691613,1779251438000,-151.0,0.00010538,2]
[422691611,1779251438000,-500.0,5.767e-05,2]
[422691617,1779251438000,-474.686713,0.000107,2]
[422691615,1779251438000,-764.78,0.000107,2]
[422691616,1779251438000,-3892.53075856,0.000107,2]
[422691604,1779251438000,-500.0,5.767e-05,2]
[422691626,1779251439000,-336.58961439,0.000107,2]
[422691625,1779251439000,-594.27430434,0.000107,2]
[422691628,1779251441000,-561.22993896,0.000107,2]
[422691627,1779251441000,-313.8660102,0.000107,2]
[422691646,1779251443000,-713.11239565,0.000107,2]
[422691647,1779251443000,-5083.60918279,0.000107,2]
[422691645,1779251443000,-722.8955016,0.000107,2]
[422691644,1779251443000,-516.52163272,0.000107,2]
[422691643,1779251443000,-1744.70786464,0.000107,2]
[422691642,1779251443000,-503.0,0.000107,2]
[422691648,1779251444000,-707.48499536,0.000107,2]
[422691649,1779251444000,-313.90069326,0.000107,2]
[422691706,1779251446000,-764.78,0.000107,2]
[422691707,1779251447000,-22410.7470991,0.000107,2]
[422691709,1779251447000,-598.49954847,0.000107,2]
[422691708,1779251447000,-458.38907396,0.000107,2]
[422691909,1779252087000,358.0,9.817e-05,5]
[422691963,1779252631000,-9999.99,8.247e-05,2]
[422691968,1779252631000,-653.92,8.396e-05,2]
[422691964,1779252631000,-9999.99,8.247e-05,2]
[422691962,1779252631000,-364.65,8.247e-05,2]
[422691961,1779252631000,-999.99,8.237e-05,2]
[422691960,1779252631000,-150.99,8.237e-05,2]
[422691959,1779252631000,-361.67,8.219e-05,2]
[422691954,1779252631000,-300.0,8.177e-05,2]
[422691958,1779252631000,-170.64,8.219e-05,2]
[422691957,1779252631000,-36008.59,8.185e-05,2]
[422691955,1779252631000,-11327.753424,8.178e-05,2]
[422691952,1779252631000,-1200.0,8.176e-05,2]
[422691953,1779252631000,-300.0,8.177e-05,2]
[422691951,1779252631000,-761.0,8.176e-05,2]
[422691966,1779252631000,-215.20247212,8.336e-05,2]
[422691946,1779252631000,-250.0,5.251e-05,2]
[422691947,1779252631000,-250.0,5.251e-05,2]
[422691950,1779252631000,-200.0,8.095e-05,2]
[422691945,1779252631000,-157.5,4.774e-05,2]
[422691949,1779252631000,-208.63953863,5.979e-05,2]
[422691948,1779252631000,-250.0,5.251e-05,2]
[422691956,1779252631000,-150.0,8.184e-05,2]
[422691967,1779252631000,-160.0,8.346e-05,2]
[422691992,1779252631000,-150.0,9.268e-05,2]
[422691969,1779252631000,-322.01322487,8.447e-05,2]
[422691965,1779252631000,-24479.3,8.327e-05,2]
[422691996,1779252631000,-166.66,9.343e-05,2]
[422691997,1779252631000,-500.0,9.368e-05,2]
[422691995,1779252631000,-214.64101228,9.268e-05,2]
[422691993,1779252631000,-150.0,9.268e-05,2]
[422691994,1779252631000,-150.0,9.268e-05,2]
[422691990,1779252631000,-537.75100803,9.268e-05,2]
[422691989,1779252631000,-500.0,9.268e-05,2]
[422691987,1779252631000,-500.0,9.268e-05,2]
[422691985,1779252631000,-500.0,9.268e-05,2]
[422691991,1779252631000,-150.0,9.268e-05,2]
[422691973,1779252631000,-299.99,8.994e-05,2]
[422691981,1779252631000,-356.53581047,9.038e-05,2]
[422691979,1779252631000,-1680.0,8.994e-05,2]
[422691977,1779252631000,-300.0,8.994e-05,2]
[422691976,1779252631000,-420.0,8.994e-05,2]
[422691974,1779252631000,-1609.78,8.994e-05,2]
[422691975,1779252631000,-964.11,8.994e-05,2]
[422691972,1779252631000,-2000.0,8.853e-05,2]
[422691971,1779252631000,-166.66,8.764e-05,2]
[422691970,1779252631000,-2068.78,8.498e-05,2]
[422691983,1779252631000,-166.66,9.053e-05,2]
[422692039,1779252632000,-493.0,9.368e-05,2]
[422692037,1779252632000,-493.0,9.368e-05,2]
[422692035,1779252632000,-493.0,9.368e-05,2]
[422692034,1779252632000,-500.0,9.368e-05,2]
[422692032,1779252632000,-500.0,9.368e-05,2]
[422692024,1779252632000,-500.0,9.368e-05,2]
[422692030,1779252632000,-500.0,9.368e-05,2]
[422692029,1779252632000,-493.0,9.368e-05,2]
[422692033,1779252632000,-493.0,9.368e-05,2]
[422692036,1779252632000,-645.80630853,9.368e-05,2]
[422692031,1779252632000,-493.0,9.368e-05,2]
[422692045,1779252632000,-500.0,9.368e-05,2]
[422692052,1779252632000,-500.0,9.368e-05,2]
[422692038,1779252632000,-493.0,9.368e-05,2]
[422692040,1779252632000,-500.0,9.368e-05,2]
[422692042,1779252632000,-500.0,9.368e-05,2]
[422692044,1779252632000,-500.0,9.368e-05,2]
[422692043,1779252632000,-493.0,9.368e-05,2]
[422692046,1779252632000,-500.0,9.368e-05,2]
[422692049,1779252632000,-500.0,9.368e-05,2]
[422692050,1779252632000,-500.0,9.368e-05,2]
[422692047,1779252632000,-500.0,9.368e-05,2]
[422692051,1779252632000,-493.0,9.368e-05,2]
[422692028,1779252632000,-500.0,9.368e-05,2]
[422692058,1779252632000,-493.0,9.368e-05,2]
[422692041,1779252632000,-500.0,9.368e-05,2]
[422692027,1779252632000,-500.0,9.368e-05,2]
[422692013,1779252632000,-552.50768249,9.368e-05,2]
[422692025,1779252632000,-500.0,9.368e-05,2]
[422691998,1779252632000,-500.0,9.368e-05,2]
[422691999,1779252632000,-500.0,9.368e-05,2]
[422692001,1779252632000,-500.0,9.368e-05,2]
[422692005,1779252632000,-500.0,9.368e-05,2]
[422692002,1779252632000,-500.0,9.368e-05,2]
[422692004,1779252632000,-500.0,9.368e-05,2]
[422692000,1779252632000,-500.0,9.368e-05,2]
[422692006,1779252632000,-493.0,9.368e-05,2]
[422692003,1779252632000,-500.0,9.368e-05,2]
[422692010,1779252632000,-500.0,9.368e-05,2]
[422692008,1779252632000,-500.0,9.368e-05,2]
[422692007,1779252632000,-500.0,9.368e-05,2]
[422692026,1779252632000,-493.0,9.368e-05,2]
[422692009,1779252632000,-493.0,9.368e-05,2]
[422692021,1779252632000,-493.0,9.368e-05,2]
[422692012,1779252632000,-493.0,9.368e-05,2]
[422692053,1779252632000,-500.0,9.368e-05,2]
[422692014,1779252632000,-500.0,9.368e-05,2]
[422692015,1779252632000,-493.0,9.368e-05,2]
[422692018,1779252632000,-150.0,9.368e-05,2]
[422692016,1779252632000,-163.17729695,9.368e-05,2]
[422692017,1779252632000,-493.0,9.368e-05,2]
[422692019,1779252632000,-493.0,9.368e-05,2]
[422692020,1779252632000,-493.0,9.368e-05,2]
[422692022,1779252632000,-500.0,9.368e-05,2]
[422692023,1779252632000,-493.0,9.368e-05,2]
[422692011,1779252632000,-500.0,9.368e-05,2]
[422692048,1779252632000,-500.0,9.368e-05,2]
[422692061,1779252632000,-493.0,9.368e-05,2]
[422692055,1779252632000,-500.0,9.368e-05,2]
[422692088,1779252632000,-623.0,9.368e-05,2]
[422692089,1779252632000,-630.71699548,9.368e-05,2]
[422692054,1779252632000,-500.0,9.368e-05,2]
[422692093,1779252632000,-500.0,9.368e-05,2]
[422692091,1779252632000,-500.0,9.368e-05,2]
[422692090,1779252632000,-500.0,9.368e-05,2]
[422692094,1779252632000,-500.0,9.368e-05,2]
[422692104,1779252632000,-500.0,9.368e-05,2]
[422692098,1779252632000,-500.0,9.368e-05,2]
[422692102,1779252632000,-500.0,9.368e-05,2]
[422692095,1779252632000,-500.0,9.368e-05,2]
[422692096,1779252632000,-500.0,9.368e-05,2]
[422692086,1779252632000,-623.0,9.368e-05,2]
[422692100,1779252632000,-500.0,9.368e-05,2]
[422692097,1779252632000,-500.0,9.368e-05,2]
[422692101,1779252632000,-500.0,9.368e-05,2]
[422692099,1779252632000,-500.0,9.368e-05,2]
[422692105,1779252632000,-500.0,9.368e-05,2]
[422692106,1779252632000,-500.0,9.368e-05,2]
[422692107,1779252632000,-500.0,9.368e-05,2]
[422692112,1779252632000,-500.0,9.368e-05,2]
[422692108,1779252632000,-500.0,9.368e-05,2]
[422692109,1779252632000,-500.0,9.368e-05,2]
[422692111,1779252632000,-500.0,9.368e-05,2]
[422692110,1779252632000,-500.0,9.368e-05,2]
[422692113,1779252632000,-500.0,9.368e-05,2]
[422692103,1779252632000,-500.0,9.368e-05,2]
[422692087,1779252632000,-623.0,9.368e-05,2]
[422692092,1779252632000,-500.0,9.368e-05,2]
[422692085,1779252632000,-623.0,9.368e-05,2]
[422692057,1779252632000,-500.0,9.368e-05,2]
[422692056,1779252632000,-500.0,9.368e-05,2]
[422692059,1779252632000,-500.0,9.368e-05,2]
[422692071,1779252632000,-623.0,9.368e-05,2]
[422692069,1779252632000,-623.0,9.368e-05,2]
[422692066,1779252632000,-623.0,9.368e-05,2]
[422692068,1779252632000,-623.0,9.368e-05,2]
[422692084,1779252632000,-515.63282319,9.368e-05,2]
[422692062,1779252632000,-360.99318876,9.368e-05,2]
[422692063,1779252632000,-623.0,9.368e-05,2]
[422692067,1779252632000,-493.0,9.368e-05,2]
[422692064,1779252632000,-623.0,9.368e-05,2]
[422692065,1779252632000,-623.0,9.368e-05,2]
[422692060,1779252632000,-500.0,9.368e-05,2]
[422692072,1779252632000,-623.0,9.368e-05,2]
[422692083,1779252632000,-623.0,9.368e-05,2]
[422692070,1779252632000,-623.0,9.368e-05,2]
[422692076,1779252632000,-623.0,9.368e-05,2]
[422692075,1779252632000,-623.0,9.368e-05,2]
[422692078,1779252632000,-623.0,9.368e-05,2]
[422692081,1779252632000,-623.0,9.368e-05,2]
[422692079,1779252632000,-623.0,9.368e-05,2]
[422692077,1779252632000,-623.0,9.368e-05,2]
[422692073,1779252632000,-623.0,9.368e-05,2]
[422692082,1779252632000,-623.0,9.368e-05,2]
[422692074,1779252632000,-623.0,9.368e-05,2]
[422692080,1779252632000,-493.0,9.368e-05,2]
[422692120,1779252633000,-638.56255825,9.368e-05,2]
[422692122,1779252633000,-20646.3975,9.442e-05,2]
[422692121,1779252633000,-370.08546216,9.416e-05,2]
[422692118,1779252633000,-500.0,9.368e-05,2]
[422692116,1779252633000,-500.0,9.368e-05,2]
[422692117,1779252633000,-500.0,9.368e-05,2]
[422692115,1779252633000,-321.54258509,9.368e-05,2]
[422692114,1779252633000,-500.0,9.368e-05,2]
[422692125,1779252633000,-166.66,9.632e-05,2]
[422692119,1779252633000,-500.0,9.368e-05,2]
[422692123,1779252633000,-500.0,9.472e-05,2]
[422692132,1779252633000,-75291.31875064,9.817e-05,2]
[422692124,1779252633000,-172.46,9.513e-05,2]
[422692136,1779252633000,-700.05,9.817e-05,2]
[422692135,1779252633000,-1356.5451,9.817e-05,2]
[422692133,1779252633000,-48094.21064522,9.817e-05,2]
[422692130,1779252633000,-83355.38914186,9.817e-05,2]
[422692134,1779252633000,-10338.37457597,9.817e-05,2]
[422692129,1779252633000,-1276753.30836327,9.817e-05,2]
[422692128,1779252633000,-2500.0,9.717e-05,2]
[422692127,1779252633000,-1660.9736,9.717e-05,2]
[422692131,1779252633000,-64599.98374423,9.817e-05,2]
[422692126,1779252633000,-34775.51388445,9.695e-05,2]
[422692142,1779252637000,-511.63513567,9.817e-05,2]
[422692147,1779252637000,-19444.98941356,9.817e-05,2]
[422692145,1779252637000,-736.12857669,9.817e-05,2]
[422692146,1779252637000,-939.963287,9.817e-05,2]
[422692141,1779252637000,-156.97743684,5.251e-05,2]
[422692143,1779252637000,-307.0,9.817e-05,2]
[422692144,1779252637000,-1906.31029911,9.817e-05,2]
[422692154,1779252639000,-1921.38772592,9.817e-05,2]
[422692155,1779252640000,-383.975,9.817e-05,2]
[422692167,1779252642000,-3379.40735805,9.817e-05,2]
[422692176,1779252646000,-30054.20607367,9.817e-05,2]
[422692175,1779252646000,-145800.43259523,9.817e-05,2]
[422692173,1779252646000,-5000.0,9.717e-05,2]
[422692174,1779252646000,-3901.63007442,9.817e-05,2]
[422692181,1779252692000,280.0,8.894e-05,5]
[422692183,1779252960000,152.0,9.728e-05,7]
[422692184,1779253278000,1736.50883935,0.000105,3]
[422692185,1779253278000,3793.49116065,0.000105,3]
[422692186,1779253295000,313.0,8.894e-05,5]
[422692195,1779253573000,-250.0,8.632e-05,2]
[422692191,1779253573000,-159.67,8.325e-05,2]
[422692190,1779253573000,-179.81,8.296e-05,2]
[422692192,1779253573000,-1034.39,8.571e-05,2]
[422692194,1779253573000,-764.18502816,8.632e-05,2]
[422692193,1779253573000,-500.0,8.571e-05,2]
[422692203,1779253573000,-253.69042017,8.79e-05,2]
[422692196,1779253573000,-2500.0,8.693e-05,2]
[422692199,1779253573000,-500.0,8.75e-05,2]
[422692198,1779253573000,-394.06952351,8.719e-05,2]
[422692200,1779253573000,-1200.0,8.789e-05,2]
[422692202,1779253573000,-1200.0,8.79e-05,2]
[422692201,1779253573000,-300.0,8.789e-05,2]
[422692197,1779253573000,-764.18502816,8.712e-05,2]
[422692204,1779253576000,-46.30957983,8.79e-05,2]
[422692205,1779253576000,-695.83915323,8.791e-05,2]
[422692206,1779253576000,-2497.858,8.792e-05,2]
[422692208,1779253576000,-764.18502816,8.792e-05,2]
[422692209,1779253576000,-150.0,8.792e-05,2]
[422692207,1779253576000,-151.07,8.792e-05,2]
[422692210,1779253577000,1212.90600483,8.792e-05,2]
[422692211,1779253577000,1212.90600483,8.792e-05,2]
[422692212,1779253577000,1212.90600483,8.792e-05,2]
[422692218,1779253577000,1212.90600483,8.792e-05,2]
[422692213,1779253577000,1212.90600483,8.792e-05,2]
[422692215,1779253577000,369.79178537,8.792e-05,2]
[422692216,1779253577000,1212.90600483,8.792e-05,2]
[422692217,1779253577000,1212.90600483,8.792e-05,2]
[422692219,1779253577000,1212.90600483,8.792e-05,2]
[422692214,1779253577000,843.11421946,8.792e-05,2]
[422692221,1779253577000,1212.90600483,8.792e-05,2]
[422692229,1779253577000,1212.90600483,8.792e-05,2]
[422692227,1779253577000,1212.90600483,8.792e-05,2]
[422692228,1779253577000,1212.90600483,8.792e-05,2]
[422692226,1779253577000,1212.90600483,8.792e-05,2]
[422692220,1779253577000,1212.90600483,8.792e-05,2]
[422692224,1779253577000,73.03982401,8.792e-05,2]
[422692222,1779253577000,1212.90600483,8.792e-05,2]
[422692223,1779253577000,1139.86618082,8.792e-05,2]
[422692225,1779253577000,1212.90600483,8.792e-05,2]
[422692238,1779253578000,1212.90600483,8.792e-05,2]
[422692230,1779253578000,1212.90600483,8.792e-05,2]
[422692231,1779253578000,1212.90600483,8.792e-05,2]
[422692232,1779253578000,1212.90600483,8.792e-05,2]
[422692234,1779253578000,989.19386748,8.792e-05,2]
[422692233,1779253578000,223.71213735,8.792e-05,2]
[422692236,1779253578000,1212.90600483,8.792e-05,2]
[422692235,1779253578000,1212.90600483,8.792e-05,2]
[422692237,1779253578000,1212.90600483,8.792e-05,2]
[422692240,1779253578000,1212.90600483,8.792e-05,2]
[422692242,1779253578000,520.46409871,8.792e-05,2]
[422692248,1779253578000,-1212.90600483,8.792e-05,2]
[422692241,1779253578000,1212.90600483,8.792e-05,2]
[422692243,1779253578000,-692.44190612,8.792e-05,2]
[422692245,1779253578000,-1212.90600483,8.792e-05,2]